[Event "Slovakia Open 2022"]
[Site "Bratislava"]
[Date "2022.10.02"]
[Round "8.2"]
[White "Kushko, Dmitriy"]
[Black "Leniart, Arkadiusz"]
[Result "0-1"]
[ECO "A07"]
[WhiteElo "2302"]
[BlackElo "2479"]
[Annotator "TA"]
[PlyCount "87"]
[EventDate "2022.09.30"]
[EventCountry "SVK"]
[SourceTitle "playchess.com"]
[Source "ChessBase"]
[SourceQuality "1"]
[TimeControl "2700+10"]

{[%evp 10,87,20,0,15,0,14,0,25,6,4,0,15,17,16,5,23,16,15,0,0,-28,-14,-70,-60,-69,-81,-72,-93,-106,-84,-88,-64,-93,-67,-58,-60,-93,-95,-84,-84,-205,-191,-183,-183,-185,-125,-105,-97,-99,-95,-101,-101,-135,-105,-153,-146,-147,-47,-109,-25,-58,-54,-170,-59,-100,-99,-93,-84,-85,-95,-124,-133,-243,-239,-343,-307,-1714,-1679,-29967]} 1. g3 {[%emt 0:00:07]} d5 {[%emt 0:00:12]} 2. Bg2 {[%emt 0:00:20]} Nf6 {[%emt 0:00:11]} 3. Nf3 {[%emt 0:00:03]} c6 {[%emt 0:01:28]} 4. O-O {[%emt 0:00:06]} Bg4 {[%emt 0:00:37]} 5. h3 {[%emt 0:00:07]} Bxf3 {[%emt 0:00:04]} 6. Bxf3 {[%emt 0:00:02]} Nbd7 {[%emt 0:00:09] A07: Réti Opening: New York and Capablanca Systems.} 7. d3 {[%emt 0:00:42]} e6 {[%emt 0:00:05]} 8. e4 {[%emt 0:03:48]} Bd6 {[%emt 0:00:04] The position is equal.} 9. Nd2 {[%emt 0:01:05]} Qb6 {[%emt 0:03:55]} 10. Kh1 {[%emt 0:00:03]} h5 {[%emt 0:04:16] [#]} 11. Bg2 $146 {[%emt 0:02:25]} ({Predecessor:} 11. Qe2 Ne5 12. Bg2 h4 13. g4 Ng6 14. Nb3 Bf4 15. Be3 Bxe3 16. Qxe3 Qxe3 17. fxe3 dxe4 {0-1 (38) Stanoev,A (2222)-Ipatov,A (2518) Sofia 2010}) 11... h4 {[%emt 0:01:48]} 12. g4 {[%emt 0:00:28]} Bf4 {[%emt 0:02:15]} 13. exd5 {[%emt 0:06:47]} Nxd5 {[%emt 0:04:59]} 14. Bxd5 {[%emt 0:01:25]} cxd5 {[%emt 0:00:27]} 15. Nf3 {[%emt 0:00:12]} (15. Nb3 $5 {[%cal Rc1f4]} Bxc1 16. Qxc1 $11) 15... Bc7 {[%emt 0:01:28]} 16. Ne1 {[%emt 0:04:48]} (16. Be3 $11 Qd6 17. Re1) 16... e5 {[%emt 0:02:42] Black has more active pieces.} 17. Ng2 {[%emt 0:02:35]} O-O-O {[%emt 0:03:48]} 18. f4 {[%emt 0:00:03]} f6 {[%emt 0:00:20]} 19. Qf3 {[%emt 0:02:17]} Qc6 {[%emt 0:01:36]} 20. Ne3 {[%emt 0:03:11]} e4 {[%emt 0:01:13]} (20... exf4 21. Nxd5 Qxc2 22. d4 $11 (22. Bxf4 Bxf4 23. Nxf4 Kb8 $11)) 21. Qg2 {[%emt 0:01:48]} g6 {[%emt 0:00:36][%cal Bg7g6,Bg6g5][%mdl 32] Prevents Nf5.} 22. dxe4 {[%emt 0:02:20]} dxe4 {[%emt 0:00:01]} 23. Bd2 {[%emt 0:01:08]} Nc5 {[%emt 0:00:17]} 24. f5 {[%emt 0:02:16]} g5 {[%emt 0:00:02]} 25. c4 {[%emt 0:05:56]} (25. b3 $17) 25... Nd3 $19 {[%emt 0:02:45] aiming for ...Nf4.} 26. Nd5 {[%emt 0:00:06] Inhibits Nf4.} Rhe8 {[%emt 0:01:18] Inhibits Ne7+.} (26... Qxc4 27. Nxf6 Nf4 28. Bxf4 (28. Qxe4 Qd3 $11) 28... Bxf4 29. Nxe4 $14 (29. Qxe4 Rd4 $14)) 27. Be3 {[%emt 0:00:53]} Kb8 {[%emt 0:00:49]} (27... Be5 $19 28. Bxa7 (28. Qxe4 $2 Bf4 $19) 28... b5 29. Qxe4 Kb7 30. Nxf6 (30. Qxd3 $2 bxc4 31. Qf3 Rxd5 $19) 30... Bxf6 31. Qxc6+ Kxc6 32. cxb5+ Kxb5) 28. b3 $17 {[%emt 0:01:25]} Rxd5 {[%emt 0:01:17]} 29. cxd5 {[%emt 0:00:00]} Qxd5 {[%emt 0:00:01]} 30. Rad1 {[%emt 0:00:39]} Qc6 {[%emt 0:00:19][%mdl 1024] Black has strong compensation.} 31. Qd2 {[%emt 0:01:49]} b6 {[%emt 0:01:22]} 32. Rg1 {[%emt 0:00:24]} (32. Qg2 $142 Qb7 33. Kg1) 32... Kb7 {[%emt 0:00:25]} 33. Qe2 {[%emt 0:00:31]} Qd6 {[%emt 0:01:00]} (33... Bf4 $17 34. Rgf1 Qd5) 34. Qg2 {[%emt 0:00:05]} (34. Rd2 $1 $15) 34... Kb8 {[%emt 0:00:38]} (34... Qd5 $1 $17 {...Bf4 is the strong threat.} 35. Rgf1 Qc6) 35. Qe2 {[%emt 0:00:06]} Qe5 {[%emt 0:00:07]} 36. Qd2 {[%emt 0:00:43]} ({White should play} 36. Rd2 $1 $15) 36... Nf4 {[%emt 0:01:04]} ({Black should try} 36... Bd6 $19 {White must now prevent ...Rc8.} 37. Qg2 Bc5) 37. Qd4 {[%emt 0:00:24]} Nxh3 {[%emt 0:01:39][%csl Gc7][%cal Re5h2]} 38. Qxe5 {[%emt 0:00:01]} Bxe5 {[%emt 0:00:03]} 39. Rg2 {[%emt 0:00:19]} Nf4 {[%emt 0:00:19] Against Re2} 40. Rc2 {[%emt 0:00:10]} Nd3 $1 {[%emt 0:00:13]} 41. Kg2 {[%emt 0:00:09]} (41. Re2 $17) 41... h3+ $1 $19 {[%emt 0:01:36]} 42. Kh1 {[%emt 0:00:11] [#]} ({Avoid the trap} 42. Kxh3 $2 Rh8+ 43. Kg2 Rh2+ 44. Kf1 Rxc2 $19) (42. Kg1 $142) 42... Bf4 $1 {[%emt 0:00:13]} 43. Bd4 {[%emt 0:00:11] [#]} (43. Bxf4+ gxf4 44. Re2) 43... Rd8 $1 {[%emt 0:00:55]} 44. Bg1 {[%emt 0:00:11] Weighted Error Value: White=0.43/Black=0.16 (very precise)} 0-1

[Event "Slovakia Open 2022"]
[Site "Bratislava"]
[Date "2022.10.02"]
[Round "8.3"]
[White "Stocek, Jiri"]
[Black "Roshka, Yevgeniy"]
[Result "1-0"]
[ECO "D02"]
[WhiteElo "2559"]
[BlackElo "2497"]
[Annotator "TA"]
[PlyCount "65"]
[EventDate "2022.09.30"]
[EventCountry "SVK"]
[SourceTitle "playchess.com"]
[Source "ChessBase"]
[SourceQuality "1"]
[TimeControl "2700+10"]

{[%evp 11,65,25,25,21,29,27,55,56,66,57,48,44,68,40,43,45,42,29,107,84,88,108,131,102,149,120,113,116,118,121,116,120,124,124,119,115,467,313,425,427,416,295,406,304,562,304,303,299,335,343,489,481,478,477,711,693]} 1. Nf3 {[%emt 0:03:28]} d5 {[%emt 0:00:09]} 2. d4 {[%emt 0:00:49]} c6 {[%emt 0:01:30]} 3. Bf4 {[%emt 0:00:24]} Qb6 {[%emt 0:01:18]} 4. Qc1 {[%emt 0:00:08]} Bf5 {[%emt 0:00:38]} 5. e3 {[%emt 0:00:27]} e6 {[%emt 0:00:56]} 6. Be2 {[%emt 0:00:21]} Nf6 {[%emt 0:00:28]} 7. O-O {[%emt 0:00:38] D02: 1 d4 d5 2 Nf3 sidelines, including 2...Nf6 3 g3 and 2...Nf6 3 Bf4.} Be7 {[%emt 0:02:03]} 8. c4 {[%emt 0:00:51]} dxc4 {[%emt 0:01:01]} 9. Nbd2 {[%emt 0:02:49] White is slightly better.} O-O {[%emt 0:01:19]} 10. Nxc4 {[%emt 0:01:10]} Qd8 {[%emt 0:00:09]} 11. Qd1 {[%emt 0:00:44] [#]} Na6 $146 {[%emt 0:05:39][%cal Bb8a6,Ba6b4,Bb4d5][%mdl 32]} ({Predecessor:} 11... Nbd7 12. Rc1 Nd5 13. Bg3 N7f6 14. h3 h6 15. Qb3 Qd7 16. Nce5 Qc8 17. Bd3 Bxd3 18. Qxd3 Rd8 19. a3 Nd7 {½-½ (46) Bobrova,K (1399)-Hlavinova,M (1439) Liptovsky Mikulas 2017}) 12. Rc1 {[%emt 0:01:38]} Nb4 {[%emt 0:01:58]} 13. a3 {[%emt 0:00:52]} Nbd5 {[%emt 0:00:04]} 14. Be5 {[%emt 0:02:25]} c5 {[%emt 0:06:27]} (14... a5 $11 {remains equal.}) 15. Qb3 {[%emt 0:02:24]} b6 {[%emt 0:01:44]} 16. Rfd1 {[%emt 0:01:08]} Ne4 {[%emt 0:00:50]} 17. Ncd2 {[%emt 0:02:33]} a5 {[%emt 0:04:28]} (17... Bf6 $142) 18. Nxe4 {[%emt 0:01:05]} Bxe4 {[%emt 0:00:02]} 19. dxc5 {[%emt 0:05:36]} Bxc5 {[%emt 0:00:06]} 20. Qc4 {[%emt 0:00:26] White is more active.} f5 {[%emt 0:01:54]} 21. Nd2 {[%emt 0:01:05]} Qg5 {[%emt 0:04:14][%csl Ge4][%cal Rg5g2] [#]} 22. Nxe4 {[%emt 0:00:53]} fxe4 {[%emt 0:00:02]} 23. Qxe4 {[%emt 0:00:05] aiming for Bd4.} Rxf2 $2 {[%emt 0:02:13][%mdl 8192] A mistake that costs the game.} 24. Rxc5 {[%emt 0:06:08]} Raf8 {[%emt 0:04:34] [#]} 25. Rc8 {[%emt 0:02:09][%mdl 512]} Rxe2 {[%emt 0:01:51]} 26. Rxf8+ {[%emt 0:00:08]} Kxf8 {[%emt 0:00:01]} 27. Qf3+ {[%emt 0:00:13]} ({Not} 27. Bd6+ Ke8 $11) 27... Kg8 $2 {[%emt 0:00:11]} (27... Ke8 {was called for.}) 28. Qxe2 {[%emt 0:00:26]} Qxe5 {[%emt 0:00:02]} 29. Qd2 {[%emt 0:01:31]} h6 {[%emt 0:00:11]} 30. Qd4 {[%emt 0:00:19]} Qg5 {[%emt 0:00:02]} (30... Qh5 $142 31. Rc1 Qg5) 31. e4 $18 {[%emt 0:00:37] White is clearly winning.} Nf6 {[%emt 0:00:12]} 32. Qxb6 {[%emt 0:00:42]} e5 {[%emt 0:01:13]} (32... Qe5 $142 33. Qd4 Qb5) 33. Qe6+ {[%emt 0:00:16] Weighted Error Value: White=0.32/Black=0.62} 1-0

[Event "Slovakia Open 2022"]
[Site "Bratislava"]
[Date "2022.10.02"]
[Round "8.4"]
[White "Kukelko, Alexey"]
[Black "Korobov, Anton"]
[Result "0-1"]
[ECO "B94"]
[WhiteElo "2280"]
[BlackElo "2671"]
[Annotator "RC"]
[PlyCount "78"]
[EventDate "2022.09.30"]
[EventCountry "SVK"]
[SourceTitle "playchess.com"]
[Source "ChessBase"]
[SourceQuality "1"]
[TimeControl "2700+10"]

1. e4 {[%emt 0:03:05]} c5 {[%emt 0:00:33]} 2. Nf3 {[%emt 0:00:07]} d6 {[%emt 0:00:01]} 3. d4 {[%emt 0:00:06]} cxd4 {[%emt 0:00:03]} 4. Nxd4 {[%emt 0:00:03]} Nf6 {[%emt 0:00:02]} 5. Nc3 {[%emt 0:00:11]} a6 {[%emt 0:00:03]} 6. Bg5 {[%emt 0:00:07]} Nbd7 {[%emt 0:00:06]} 7. Qe2 {[%emt 0:00:05]} h6 {[%emt 0:01:12]} 8. Bh4 {[%emt 0:00:54]} g5 {[%emt 0:00:31]} 9. Bg3 {[%emt 0:00:09]} e6 {[%emt 0:00:02]} 10. O-O-O {[%emt 0:01:40]} Qc7 {[%emt 0:00:52]} 11. h4 {[%emt 0:02:10]} Rg8 {[%emt 0:00:42]} 12. hxg5 {[%emt 0:00:30]} hxg5 {[%emt 0:00:02]} 13. a3 {[%emt 0:00:15]} Ne5 {[%emt 0:01:07]} 14. Qd2 {[%emt 0:04:49]} Bd7 {[%emt 0:00:55]} 15. f3 {[%emt 0:00:17]} Rb8 {[%emt 0:04:32]} 16. a4 {[%emt 0:05:21]} Rc8 {[%emt 0:00:58]} 17. Kb1 {[%emt 0:00:39]} Qc5 {[%emt 0:02:31]} 18. Nb3 {[%emt 0:00:47]} Qb4 {[%emt 0:00:53]} 19. Qd4 {[%emt 0:01:27]} Qxd4 {[%emt 0:00:09]} 20. Rxd4 {[%emt 0:00:02]} g4 {[%emt 0:02:54]} 21. f4 {[%emt 0:00:50]} Rxc3 {[%emt 0:00:43]} 22. bxc3 {[%emt 0:00:31]} Nc6 {[%emt 0:00:02]} 23. Bd3 {[%emt 0:03:48]} Nxd4 {[%emt 0:00:18]} 24. cxd4 {[%emt 0:00:09]} Bxa4 {[%emt 0:00:36]} 25. Nd2 {[%emt 0:05:33]} d5 {[%emt 0:03:35]} 26. e5 {[%emt 0:01:21]} Bb4 {[%emt 0:00:24]} 27. Kc1 {[%emt 0:03:28]} Nd7 {[%emt 0:00:37]} 28. Nb1 {[%emt 0:01:52]} Bb5 {[%emt 0:02:12]} 29. Bxb5 {[%emt 0:00:53]} axb5 {[%emt 0:05:33]} 30. Be1 {[%emt 0:00:01]} Bxe1 {[%emt 0:00:48]} 31. Rxe1 {[%emt 0:00:11]} Rh8 {[%emt 0:00:01]} 32. Nc3 {[%emt 0:01:22]} Rh2 {[%emt 0:00:05]} 33. Rg1 {[%emt 0:00:07]} Nb6 {[%emt 0:01:31]} 34. Kd2 {[%emt 0:00:42]} Nc4+ {[%emt 0:01:40]} 35. Ke2 {[%emt 0:00:11]} Na3 {[%emt 0:00:27]} 36. Kd3 {[%emt 0:00:12]} Kd7 {[%emt 0:00:56]} 37. Nd1 {[%emt 0:05:14]} Rh8 {[%emt 0:01:08]} 38. g3 {[%emt 0:01:55]} b4 {[%emt 0:01:03]} 39. c3 {[%emt 0:00:25]} b3 {[%emt 0:00:33]} 0-1

[Event "Slovakia Open 2022"]
[Site "Bratislava"]
[Date "2022.10.02"]
[Round "8.5"]
[White "Kraus, Tomas"]
[Black "Slovak, Kilian"]
[Result "1-0"]
[ECO "D77"]
[WhiteElo "2479"]
[BlackElo "2278"]
[Annotator "TA"]
[PlyCount "69"]
[EventDate "2022.09.30"]
[EventCountry "SVK"]
[SourceTitle "playchess.com"]
[Source "ChessBase"]
[SourceQuality "1"]
[TimeControl "2700+10"]

{[%evp 13,69,34,35,30,59,75,73,33,36,31,39,39,66,33,38,49,36,35,57,71,74,69,71,67,76,65,68,47,86,70,82,60,57,68,107,89,248,200,194,110,281,229,300,262,915,914,819,678,1824,1787,29987,29988,29988,29989,2912,966,29983,29984]} 1. d4 {[%emt 0:00:10]} Nf6 {[%emt 0:17:12]} 2. g3 {[%emt 0:00:22]} g6 {[%emt 0:00:14]} 3. Bg2 {[%emt 0:00:18]} d5 {[%emt 0:00:55]} 4. c4 {[%emt 0:00:45]} e6 {[%emt 0:01:35]} 5. Nf3 {[%emt 0:02:19]} Bg7 {[%emt 0:00:03]} 6. O-O {[%emt 0:00:40]} O-O {[%emt 0:00:03]} 7. Nc3 $1 {[%emt 0:01:40] 7.Nc3 scores better than 7.Qc2.} dxc4 {[%emt 0:03:56]} 8. Qa4 {[%emt 0:03:54] D77: Fianchetto Grünfeld: 6 0-0: Replies other than 6...c6.} Bd7 {[%emt 0:02:03]} 9. Qxc4 {[%emt 0:00:04]} Bc6 {[%emt 0:00:01] Prevents e4.} 10. Bg5 {[%emt 0:06:13] White is better.} h6 {[%emt 0:01:31]} 11. Bxf6 {[%emt 0:00:26]} Bxf6 {[%emt 0:00:03]} 12. e4 {[%emt 0:00:35]} Nd7 {[%emt 0:03:17] [#]} 13. Rfd1 $146 {[%emt 0:04:16]} ({Predecessor:} 13. Rad1 Nb6 14. Qb3 Qe8 15. Qc2 Rd8 16. Rfe1 e5 17. d5 Bd7 18. h3 Bg7 19. Qe2 {½-½ (43) Schmid,E (1960)-Seifert,M (1932) Ditzingen 2008}) 13... Bg7 {[%emt 0:02:12]} 14. b4 {[%emt 0:02:20][%cal Bb2b4,Bb4b5][%mdl 32]} Nb6 {[%emt 0:02:46]} 15. Qb3 {[%emt 0:01:34]} a5 {[%emt 0:00:02]} 16. b5 $1 {[%emt 0:00:40]} a4 {[%emt 0:00:01]} 17. Qb4 {[%emt 0:01:42]} Bd7 {[%emt 0:00:25]} 18. Rac1 {[%emt 0:01:58]} Re8 {[%emt 0:00:28]} 19. h4 {[%emt 0:00:55]} Qe7 {[%emt 0:01:51]} 20. Qb1 {[%emt 0:06:00]} Rec8 {[%emt 0:02:10]} 21. e5 {[%emt 0:01:02]} Nd5 {[%emt 0:00:42]} 22. Nd2 {[%emt 0:02:41]} Nxc3 {[%emt 0:00:49]} 23. Rxc3 {[%emt 0:00:02]} Ra5 {[%emt 0:00:01]} 24. Bf1 {[%emt 0:00:01] White is more active.} ({Don't do} 24. Bxb7 Rxb5 25. Qe4 Rb8 26. Rxc7 Qd8 27. Rxd7 (27. Rdc1 Rb2 $11) 27... Qxd7) 24... c5 $2 {[%emt 0:02:04]} (24... Be8 $16) 25. Rdc1 {[%emt 0:02:34]} b6 {[%emt 0:00:02] [#]} 26. f4 {[%emt 0:01:58]} (26. Ne4 $1 $18) 26... Bf8 $2 {[%emt 0:03:11]} (26... f5 $16) 27. Ne4 $18 {[%emt 0:00:38] Threatens to win with dxc5.} Qd8 {[%emt 0:01:15]} 28. h5 {[%emt 0:00:39] Hoping for hxg6.} ({Resist} 28. dxc5 $6 Bxc5+ 29. Nxc5 bxc5 $18) 28... cxd4 $2 {[%emt 0:00:09]} (28... Kg7 29. hxg6 (29. dxc5 Bxc5+ 30. Kh2 Qe7 $18) 29... fxg6 30. dxc5 bxc5) 29. Rxc8 {[%emt 0:00:20]} Bxc8 {[%emt 0:00:01]} 30. hxg6 {[%emt 0:00:07]} fxg6 {[%emt 0:00:01]} 31. Nd6 {[%emt 0:00:38]} Bd7 {[%emt 0:00:59]} 32. Qxg6+ {[%emt 0:00:14]} Bg7 {[%emt 0:00:01]} 33. Qf7+ {[%emt 0:01:02]} Kh8 {[%emt 0:00:01] [#]} 34. Nb7 {[%emt 0:00:01]} (34. Rc7 $142 $3 {[%mdl 512]} Ra8 35. Rxd7 Qg8 36. Qg6 Qh7 37. Nf7+ Kg8 38. Qxe6 Rf8 39. Ng5+ Kh8 40. Nxh7) 34... Qa8 {[%emt 0:00:18]} 35. Qxd7 {[%emt 0:00:11] Weighted Error Value: White=0.17 (very precise) /Black=0.78} 1-0

[Event "Slovakia Open 2022"]
[Site "Bratislava"]
[Date "2022.10.02"]
[Round "8.6"]
[White "Yankelevich, Lev"]
[Black "Nytra, Ondrej"]
[Result "1-0"]
[ECO "D27"]
[WhiteElo "2484"]
[BlackElo "2233"]
[Annotator "TA RC"]
[PlyCount "50"]
[EventDate "2022.09.30"]
[EventCountry "SVK"]
[SourceTitle "playchess.com"]
[Source "ChessBase"]
[SourceQuality "1"]
[TimeControl "2700+10"]

{[%evp 18,50,0,-6,35,44,41,60,54,28,29,-25,62,-19,-13,0,4,-19,-9,-26,29,35,44,14,212,216,209,212,954,940,907,902,880,847,29999]} 1. Nf3 {[%emt 0:08:12]} d5 {[%emt 0:00:22]} 2. d4 {[%emt 0:00:28]} c6 {[%emt 0:00:07]} 3. c4 {[%emt 0:00:03]} e6 {[%emt 0:00:02]} 4. e3 {[%emt 0:00:09]} Nf6 {[%emt 0:00:09]} 5. Bd3 {[%emt 0:00:37]} dxc4 {[%emt 0:00:16]} 6. Bxc4 {[%emt 0:00:03]} b5 {[%emt 0:00:02]} 7. Bd3 {[%emt 0:00:07]} Bb7 {[%emt 0:00:33]} 8. O-O {[%emt 0:00:21]} a6 {[%emt 0:00:29]} 9. e4 {[%emt 0:00:04]} c5 {[%emt 0:00:32]} 10. e5 {[%emt 0:01:24]} c4 {[%emt 0:00:48] [#] D27: Queen's Gambit Accepted: Classical main line: 7 e4!? and 7 a4.} 11. exf6 $146 {[%emt 0:01:54]} (11. Bxc4 {feels hotter.} bxc4 12. exf6 gxf6 13. Nc3) ({Predecessor:} 11. Bc2 Nd5 12. Nbd2 Nc6 13. Ne4 h6 14. a3 Be7 15. Qe2 Qb6 16. Rd1 Na5 17. Be3 Nb3 18. Bxb3 Nxe3 19. Qxe3 cxb3 {1-0 (57) Garcia Ilundain,D (2485)-Oms Pallisse,J (2440) Salamanca 1998}) 11... cxd3 {[%emt 0:00:08]} 12. fxg7 {[%emt 0:00:02]} Bxg7 {[%emt 0:00:03] White is slightly better.} 13. Qxd3 {[%emt 0:00:02]} (13. Bg5 $5 {[%cal Rg5d8]} Bf6 14. Bxf6 Qxf6 15. Nbd2 $11 (15. Qxd3 Bxf3 16. Qxf3 Qxf3 $15)) 13... Nc6 {[%emt 0:00:52][%cal Rc6d4]} 14. Bg5 {[%emt 0:00:55] [#]} (14. Rd1 $142) 14... Qd7 {[%emt 0:01:04]} (14... Ne5 $1 $11 15. Nxe5 Qxg5) 15. Nc3 {[%emt 0:00:12]} ({White should try} 15. Rd1 $14) 15... Nxd4 $11 {[%emt 0:04:49]} 16. Nxd4 {[%emt 0:02:33]} Bxd4 {[%emt 0:00:55] This bishop pair is nice.} 17. Be3 {[%emt 0:04:02] [#]} Rg8 $1 {[%emt 0:02:04]} 18. f3 {[%emt 0:00:04]} (18. Qxd4 Rxg2+ 19. Kh1 Qxd4 20. f3 Qg4 $3 {[%mdl 512]} 21. Ne4 Bxe4 $1 22. fxe4 Qxe4 23. Rf4 Qb7 24. h4 Rxb2+) 18... Bxc3 {[%emt 0:01:12]} (18... Be5 $142 19. Qxd7+ Kxd7) 19. Qxc3 {[%emt 0:02:09]} Rc8 {[%emt 0:00:06]} 20. Qf6 {[%emt 0:01:14] Black must now prevent Bg5.} Qd3 $2 {[%emt 0:02:54] Black cannot hold the game after this.} (20... Qd8 $11 21. Qh6 Qd3) 21. Bg5 $1 $18 {[%emt 0:00:33][%csl Gg5][%cal Rf6e7]} Qd6 {[%emt 0:03:08] [#] Against Qe7+. Threatens to win with ...Qc5+.} 22. Rac1 {[%emt 0:03:27] Prevents Qc5+.} Rg6 $2 {[%emt 0:13:39]} (22... Rxc1 23. Rxc1 h6 24. Bxh6 Qd8) 23. Rxc8+ {[%emt 0:01:35] White is clearly winning.} Bxc8 {[%emt 0:00:46]} 24. Qh8+ {[%emt 0:00:03]} Qf8 {[%emt 0:00:02] [#]} 25. Rd1 $1 {[%emt 0:01:00][%csl Gg5][%cal Rd1d8]} Qxh8 {[%emt 0:03:15] Weighted Error Value: White=0.20 (precise) /Black=0.61} (25... Rxg5 26. Rd8+) 1-0

[Event "Slovakia Open 2022"]
[Site "Bratislava"]
[Date "2022.10.02"]
[Round "8.7"]
[White "Kostolansky, Sebastian Lukas"]
[Black "Mikrut, Dariusz"]
[Result "0-1"]
[ECO "C88"]
[WhiteElo "2398"]
[BlackElo "2316"]
[Annotator "TA"]
[PlyCount "72"]
[EventDate "2022.09.30"]
[EventCountry "SVK"]
[SourceTitle "playchess.com"]
[Source "ChessBase"]
[SourceQuality "1"]
[TimeControl "2700+10"]

{[%evp 19,72,14,15,14,15,9,20,4,18,0,0,0,0,2,2,9,0,8,35,0,0,0,0,0,2,0,0,-11,-14,-4,-2,-14,-12,-60,-32,-86,-89,-103,-94,-97,-86,-185,-185,-207,-217,-240,-239,-406,-385,-1288,-881,-856,-830,-29997,-29998]} 1. e4 {[%emt 0:00:08]} e5 {[%emt 0:00:29]} 2. Nf3 {[%emt 0:00:04]} Nc6 {[%emt 0:00:02]} 3. Bb5 {[%emt 0:00:06]} a6 {[%emt 0:00:05]} 4. Ba4 {[%emt 0:00:02]} Nf6 {[%emt 0:00:03]} 5. O-O {[%emt 0:00:06]} Be7 {[%emt 0:00:21]} 6. Re1 {[%emt 0:00:58]} b5 {[%emt 0:00:02]} 7. Bb3 {[%emt 0:00:01]} O-O {[%emt 0:00:03]} 8. a4 {[%emt 0:01:12]} b4 {[%emt 0:00:11]} 9. d4 {[%emt 0:02:20]} d6 {[%emt 0:00:17]} 10. dxe5 {[%emt 0:04:54]} Nxe5 {[%emt 0:00:21]} (10... dxe5 {is more complex.} 11. Qxd8 Rxd8 12. Bg5 a5) 11. Nxe5 {[%emt 0:01:36] C88: Closed Ruy Lopez: Anti-Marshall Systems.} dxe5 {[%emt 0:00:02]} 12. Qxd8 {[%emt 0:01:38]} (12. Bg5 {looks sharper.} Bc5 13. Nd2 Bg4 14. Qc1) 12... Rxd8 {[%emt 0:00:06]} 13. Nd2 {[%emt 0:00:02] The position is equal.} Bc5 {[%emt 0:06:22]} 14. h3 {[%emt 0:03:34]} Bb7 {[%emt 0:03:39]} 15. Nc4 {[%emt 0:01:28] [#]} Nxe4 $146 {[%emt 0:02:49]} ({Predecessor:} 15... Bd4 16. Bg5 Rab8 17. Rad1 Kf8 18. Kf1 h6 19. Bxf6 gxf6 20. Rd3 Bc6 21. f3 Ke7 {½-½ (34) Walker,G (2438)-Brookes,J (2554) ICCF email 2009}) 16. Be3 {[%emt 0:05:04]} Bd5 {[%emt 0:13:13]} 17. Nxe5 {[%emt 0:06:55]} Bxb3 {[%emt 0:00:08]} 18. cxb3 {[%emt 0:00:02]} Rd5 {[%emt 0:02:41]} 19. Bxc5 {[%emt 0:09:25]} (19. Nc6 $5 {[%cal Re3c5]} Rd3 20. Rac1 Bxe3 21. Rxe3 Rxe3 22. fxe3 $11) 19... Nxc5 {[%emt 0:00:29]} 20. Nc6 {[%emt 0:00:01] Black must now prevent Ne7+.} Rd6 {[%emt 0:01:01]} 21. Nxb4 {[%emt 0:00:02]} a5 {[%emt 0:00:08]} 22. Nc2 {[%emt 0:02:44]} Rd2 {[%emt 0:01:29]} 23. b4 {[%emt 0:01:10]} Ne6 {[%emt 0:03:01]} 24. Rac1 {[%emt 0:03:44]} axb4 {[%emt 0:01:29] Black wants to play ...c5.} 25. Nxb4 {[%emt 0:00:01]} Rxa4 {[%emt 0:00:46]} 26. Nc6 {[%emt 0:01:40]} (26. Rc2 $11 {feels stronger.} Rxc2 27. Nxc2) 26... g6 {[%emt 0:00:07]} 27. Rcd1 {[%emt 0:00:25]} (27. b3 $15 Raa2 28. Rf1) 27... Rxb2 $17 {[%emt 0:01:43] Black is more active.} 28. Rd7 {[%emt 0:00:01]} Rf4 {[%emt 0:02:07]} 29. Rf1 {[%emt 0:00:01]} Rc2 {[%emt 0:00:29]} 30. g3 {[%emt 0:00:11] [#]} (30. Ne5 $17) 30... Re4 $1 $19 {[%emt 0:00:34]} ({Stronger than} 30... Rxc6 31. gxf4 Nxf4 32. h4 $11) 31. Ne7+ {[%emt 0:00:16]} Kg7 {[%emt 0:00:08] Strongly threatening ...Nf8.} 32. Nd5 {[%emt 0:00:12]} Rd4 {[%emt 0:01:30]} 33. Re1 $2 {[%emt 0:00:16]} (33. Ne3 Rxf2 34. Rxd4 Rxf1+ 35. Kxf1 Nxd4 36. Kf2) 33... Ng5 {[%emt 0:00:04] Hoping for ...Nf3+.} 34. Ree7 $2 {[%emt 0:00:12]} (34. Rxc7 Nf3+ 35. Kf1 Nxe1 36. Kxe1 Re4+ 37. Kf1 Rxc7 38. Nxc7) 34... Rc1+ {[%emt 0:01:00]} 35. Kg2 {[%emt 0:00:09] [#]} Rdd1 $1 {[%emt 0:00:01] ( -> ...Rg1+)} 36. h4 {[%emt 0:00:17]} Rg1+ {[%emt 0:00:02] Weighted Error Value: White=0.69/Black=0.22 (precise)} 0-1